[Event "Titled Tuesday Blitz March 15 Early 2022"]
[White "Hernandez Jimenez, Alexander Andres"]
[Black "Demin, Vladimir"]
[WhiteFideId "3900452"]
[BlackFideId "4167457"]
[WhiteElo "2082"]
[BlackElo "2490"]
[Result "0-1"]
[Round "05"]
[TimeControl "180+1"]
[Date "2022.03.15"]
[WhiteClock "0:00:01"]
[BlackClock "0:00:12"]

1. e4 {[%clk 0:03:00]}  e5 {[%clk 0:02:55]} 2. Nf3 {[%clk 0:02:56]}  Nc6 {[%clk 0:02:54]} 3. Bc4 {[%clk 0:02:55]}  Nf6 {[%clk 0:02:50]} 4. d3 {[%clk 0:02:55]}  h6 {[%clk 0:02:50]} 5. O-O {[%clk 0:02:55]}  d6 {[%clk 0:02:50]} 6. c3 {[%clk 0:02:55]}  g5 {[%clk 0:02:50]} 7. Re1 {[%clk 0:02:49]}  Bg7 {[%clk 0:02:50]} 8. d4 {[%clk 0:02:45]}  O-O {[%clk 0:02:47]} 9. dxe5 {[%clk 0:02:07]}  Nxe5 {[%clk 0:02:35]} 10. Nxe5 {[%clk 0:02:07]}  dxe5 {[%clk 0:02:36]} 11. Be3 {[%clk 0:02:01]}  Qe7 {[%clk 0:02:19]} 12. Nd2 {[%clk 0:01:59]}  Rd8 {[%clk 0:02:17]} 13. f3 {[%clk 0:01:55]}  Nh5 {[%clk 0:02:13]} 14. Qc2 {[%clk 0:01:52]}  Nf4 {[%clk 0:02:12]} 15. Nb3 {[%clk 0:01:42]}  g4 {[%clk 0:02:01]} 16. Bxf4 {[%clk 0:01:36]}  exf4 {[%clk 0:01:55]} 17. Be2 {[%clk 0:01:34]}  g3 {[%clk 0:01:44]} 18. Rad1 {[%clk 0:01:23]}  Be6 {[%clk 0:01:36]} 19. Nd4 {[%clk 0:01:16]}  Qc5 {[%clk 0:01:23]} 20. Qd2 {[%clk 0:01:12]}  Bxa2 {[%clk 0:01:14]} 21. Qxf4 {[%clk 0:01:11]}  gxh2+ {[%clk 0:01:09]} 22. Qxh2 {[%clk 0:01:06]}  Bxd4+ {[%clk 0:01:04]} 23. cxd4 {[%clk 0:01:06]}  Rxd4 {[%clk 0:01:04]} 24. Qg3+ {[%clk 0:01:03]}  Kh8 {[%clk 0:01:01]} 25. Qf2 {[%clk 0:00:55]}  Rad8 {[%clk 0:00:56]} 26. Rc1 {[%clk 0:00:51]}  Qd6 {[%clk 0:00:50]} 27. Qe3 {[%clk 0:00:48]}  Kg7 {[%clk 0:00:43]} 28. e5 {[%clk 0:00:48]}  Qb6 {[%clk 0:00:38]} 29. Bf1 {[%clk 0:00:44]}  Be6 {[%clk 0:00:34]} 30. b3 {[%clk 0:00:22]}  c6 {[%clk 0:00:30]} 31. Bc4 {[%clk 0:00:19]}  Bxc4 {[%clk 0:00:19]} 32. bxc4 {[%clk 0:00:19]}  Rd3 {[%clk 0:00:17]} 33. Qxb6 {[%clk 0:00:19]}  axb6 {[%clk 0:00:18]} 34. Rb1 {[%clk 0:00:18]}  Rc3 {[%clk 0:00:17]} 35. Rxb6 {[%clk 0:00:18]}  Rd7 {[%clk 0:00:18]} 36. Re4 {[%clk 0:00:16]}  Rc2 {[%clk 0:00:18]} 37. Rg4+ {[%clk 0:00:09]}  Kh7 {[%clk 0:00:18]} 38. f4 {[%clk 0:00:08]}  h5 {[%clk 0:00:18]} 39. Rg5 {[%clk 0:00:07]}  Kh6 {[%clk 0:00:18]} 40. Rg3 {[%clk 0:00:06]}  Rxc4 {[%clk 0:00:17]} 41. f5 {[%clk 0:00:06]}  Re4 {[%clk 0:00:16]} 42. e6 {[%clk 0:00:03]}  fxe6 {[%clk 0:00:16]} 43. fxe6 {[%clk 0:00:03]}  Rxe6 {[%clk 0:00:17]} 44. Rgb3 {[%clk 0:00:01]}  Ree7 {[%clk 0:00:15]} 45. R6b4 {[%clk 0:00:01]}  Rg7 {[%clk 0:00:13]} 46. Rb6 {[%clk 0:00:01]}  Rd1+ {[%clk 0:00:11]} 47. Kh2 {[%clk 0:00:01]}  Rd2 {[%clk 0:00:12]} 0-1


[Site "https://www.chess.com"]

[Event "Titled Tuesday Blitz March 15 Early 2022"]
[White "Hess, Robert"]
[Black "Aghamaliyev, Cemil"]
[WhiteFideId "2022036"]
[BlackFideId "13400215"]
[WhiteElo "2557"]
[BlackElo "2773"]
[Result "1-0"]
[Round "05"]
[TimeControl "180+1"]
[Date "2022.03.15"]
[WhiteClock "0:01:01"]
[BlackClock "0:01:27"]

1. b3 {[%clk 0:03:00]}  e5 {[%clk 0:02:57]} 2. Bb2 {[%clk 0:02:55]}  Nc6 {[%clk 0:02:58]} 3. e3 {[%clk 0:02:54]}  a6 {[%clk 0:02:58]} 4. Ne2 {[%clk 0:02:54]}  Nf6 {[%clk 0:02:58]} 5. h3 {[%clk 0:02:54]}  d5 {[%clk 0:02:57]} 6. d3 {[%clk 0:02:55]}  Be6 {[%clk 0:02:56]} 7. Nd2 {[%clk 0:02:55]}  Bd6 {[%clk 0:02:56]} 8. a3 {[%clk 0:02:52]}  O-O {[%clk 0:02:56]} 9. g4 {[%clk 0:02:53]}  Nd7 {[%clk 0:02:56]} 10. Bg2 {[%clk 0:02:53]}  Nb6 {[%clk 0:02:54]} 11. Ng3 {[%clk 0:02:50]}  g6 {[%clk 0:02:53]} 12. e4 {[%clk 0:02:49]}  a5 {[%clk 0:02:50]} 13. Nf3 {[%clk 0:02:34]}  Re8 {[%clk 0:02:46]} 14. O-O {[%clk 0:02:32]}  f6 {[%clk 0:02:41]} 15. a4 {[%clk 0:02:12]}  Bf7 {[%clk 0:02:39]} 16. Kh2 {[%clk 0:02:03]}  Qd7 {[%clk 0:02:35]} 17. Qd2 {[%clk 0:01:51]}  Rad8 {[%clk 0:02:34]} 18. Rad1 {[%clk 0:01:50]}  Bb4 {[%clk 0:02:32]} 19. Qh6 {[%clk 0:01:45]}  Bf8 {[%clk 0:02:31]} 20. Qh4 {[%clk 0:01:40]}  Bg7 {[%clk 0:02:30]} 21. g5 {[%clk 0:01:37]}  f5 {[%clk 0:02:17]} 22. exf5 {[%clk 0:01:35]}  gxf5 {[%clk 0:02:18]} 23. Nh5 {[%clk 0:01:35]}  Bxh5 {[%clk 0:02:18]} 24. Qxh5 {[%clk 0:01:36]}  e4 {[%clk 0:02:04]} 25. Bxg7 {[%clk 0:01:32]}  exf3 {[%clk 0:01:46]} 26. Bf6 {[%clk 0:01:29]}  Qd6+ {[%clk 0:01:41]} 27. Kg1 {[%clk 0:01:21]}  fxg2 {[%clk 0:01:41]} 28. Kxg2 {[%clk 0:01:18]}  Ne7 {[%clk 0:01:31]} 29. Qh6 {[%clk 0:01:14]}  Kf7 {[%clk 0:01:27]} 30. Rde1 {[%clk 0:01:01]} 1-0


[Site "https://www.chess.com"]

[Event "Titled Tuesday Blitz March 15 Early 2022"]
[White "Hoffmann, Asa"]
[Black "Weishaeutel, Moritz"]
[WhiteFideId "2001470"]
[BlackFideId "12967300"]
[WhiteElo "2117"]
[BlackElo "2002"]
[Result "0-1"]
[Round "05"]
[TimeControl "180+1"]
[Date "2022.03.15"]
[WhiteClock "0:01:01"]
[BlackClock "0:00:17"]

1. d4 {[%clk 0:02:55]}  Nf6 {[%clk 0:03:00]} 2. Bg5 {[%clk 0:02:54]}  e6 {[%clk 0:02:57]} 3. Nd2 {[%clk 0:02:54]}  h6 {[%clk 0:02:56]} 4. Bh4 {[%clk 0:02:53]}  d5 {[%clk 0:02:53]} 5. e3 {[%clk 0:02:52]}  Be7 {[%clk 0:02:53]} 6. Bd3 {[%clk 0:02:52]}  O-O {[%clk 0:02:53]} 7. f4 {[%clk 0:02:52]}  c5 {[%clk 0:02:54]} 8. c3 {[%clk 0:02:51]}  b6 {[%clk 0:02:49]} 9. Qe2 {[%clk 0:02:50]}  a5 {[%clk 0:02:49]} 10. Ngf3 {[%clk 0:02:49]}  Ba6 {[%clk 0:02:49]} 11. Bxa6 {[%clk 0:02:49]}  Nxa6 {[%clk 0:02:49]} 12. Ne5 {[%clk 0:02:49]}  Nb8 {[%clk 0:02:45]} 13. O-O {[%clk 0:02:47]}  Nfd7 {[%clk 0:02:44]} 14. Bg3 {[%clk 0:02:38]}  Nxe5 {[%clk 0:02:29]} 15. fxe5 {[%clk 0:02:37]}  Bh4 {[%clk 0:02:20]} 16. Qg4 {[%clk 0:02:34]}  Bxg3 {[%clk 0:02:19]} 17. Qxg3 {[%clk 0:02:33]}  Qe7 {[%clk 0:02:14]} 18. Rf4 {[%clk 0:02:32]}  b5 {[%clk 0:01:57]} 19. Raf1 {[%clk 0:02:31]}  Nc6 {[%clk 0:01:53]} 20. Rg4 {[%clk 0:02:30]}  f5 {[%clk 0:01:07]} 21. exf6 {[%clk 0:02:29]}  Rxf6 {[%clk 0:01:07]} 22. Rxf6 {[%clk 0:02:28]}  Qxf6 {[%clk 0:01:08]} 23. Rf4 {[%clk 0:02:18]}  Qe7 {[%clk 0:01:07]} 24. Nf3 {[%clk 0:02:17]}  Rf8 {[%clk 0:01:02]} 25. h4 {[%clk 0:02:08]}  b4 {[%clk 0:00:52]} 26. h5 {[%clk 0:01:57]}  a4 {[%clk 0:00:47]} 27. a3 {[%clk 0:01:56]}  bxa3 {[%clk 0:00:47]} 28. bxa3 {[%clk 0:01:56]}  cxd4 {[%clk 0:00:45]} 29. cxd4 {[%clk 0:01:48]}  Qxa3 {[%clk 0:00:38]} 30. Rxf8+ {[%clk 0:01:43]}  Qxf8 {[%clk 0:00:37]} 31. Qc7 {[%clk 0:01:35]}  Qa8 {[%clk 0:00:31]} 32. Qd7 {[%clk 0:01:27]}  a3 {[%clk 0:00:17]} 33. Qxe6+ {[%clk 0:01:26]}  Kh8 {[%clk 0:00:17]} 34. Ne5 {[%clk 0:01:12]}  Nxe5 {[%clk 0:00:16]} 35. dxe5 {[%clk 0:01:01]}  a2 {[%clk 0:00:17]} 0-1


[Site "https://www.chess.com"]

[Event "Titled Tuesday Blitz March 15 Early 2022"]
[White "Horobetz, Graham"]
[Black "Agrest, Evgenij"]
[WhiteFideId "2047322"]
[BlackFideId "1705024"]
[WhiteElo "2584"]
[BlackElo "2574"]
[Result "0-1"]
[Round "05"]
[TimeControl "180+1"]
[Date "2022.03.15"]
[WhiteClock "0:00:02"]
[BlackClock "0:00:11"]

1. e4 {[%clk 0:03:00]}  d5 {[%clk 0:02:58]} 2. exd5 {[%clk 0:03:00]}  Qxd5 {[%clk 0:02:58]} 3. Nc3 {[%clk 0:03:00]}  Qd8 {[%clk 0:02:58]} 4. d4 {[%clk 0:03:00]}  g6 {[%clk 0:02:57]} 5. Nf3 {[%clk 0:03:00]}  Bg7 {[%clk 0:02:57]} 6. Bc4 {[%clk 0:02:58]}  a6 {[%clk 0:02:56]} 7. O-O {[%clk 0:02:54]}  Nf6 {[%clk 0:02:55]} 8. Ne5 {[%clk 0:02:51]}  O-O {[%clk 0:02:54]} 9. Be3 {[%clk 0:02:50]}  Nc6 {[%clk 0:02:52]} 10. Nxc6 {[%clk 0:02:43]}  bxc6 {[%clk 0:02:52]} 11. h3 {[%clk 0:02:43]}  Rb8 {[%clk 0:02:50]} 12. Bb3 {[%clk 0:02:42]}  Nd5 {[%clk 0:02:44]} 13. Qf3 {[%clk 0:02:35]}  Be6 {[%clk 0:02:27]} 14. Ne4 {[%clk 0:02:30]}  a5 {[%clk 0:02:23]} 15. Nc5 {[%clk 0:02:27]}  Bf5 {[%clk 0:02:22]} 16. g4 {[%clk 0:02:17]}  Bc8 {[%clk 0:02:16]} 17. c3 {[%clk 0:02:06]}  e5 {[%clk 0:02:07]} 18. dxe5 {[%clk 0:02:00]}  Bxe5 {[%clk 0:01:48]} 19. Rad1 {[%clk 0:01:59]}  Bd6 {[%clk 0:01:27]} 20. Ne4 {[%clk 0:01:53]}  Be6 {[%clk 0:01:08]} 21. Ng5 {[%clk 0:01:21]}  Qe7 {[%clk 0:01:01]} 22. Nxe6 {[%clk 0:01:08]}  fxe6 {[%clk 0:00:59]} 23. Qe4 {[%clk 0:01:05]}  Rbe8 {[%clk 0:00:50]} 24. Kg2 {[%clk 0:00:57]}  Nf4+ {[%clk 0:00:40]} 25. Bxf4 {[%clk 0:00:55]}  Rxf4 {[%clk 0:00:40]} 26. Qxc6 {[%clk 0:00:47]}  h5 {[%clk 0:00:39]} 27. f3 {[%clk 0:00:46]}  Ref8 {[%clk 0:00:37]} 28. Rde1 {[%clk 0:00:44]}  Qh4 {[%clk 0:00:34]} 29. Re3 {[%clk 0:00:15]}  hxg4 {[%clk 0:00:26]} 30. Bxe6+ {[%clk 0:00:15]}  Kh8 {[%clk 0:00:20]} 31. Bxg4 {[%clk 0:00:09]}  R4f6 {[%clk 0:00:16]} 32. f4 {[%clk 0:00:08]}  Bxf4 {[%clk 0:00:14]} 33. Ref3 {[%clk 0:00:08]}  Rxc6 {[%clk 0:00:12]} 34. Rxf4 {[%clk 0:00:07]}  Rxf4 {[%clk 0:00:12]} 35. Rxf4 {[%clk 0:00:08]}  Rd6 {[%clk 0:00:12]} 36. Rf8+ {[%clk 0:00:08]}  Kg7 {[%clk 0:00:12]} 37. Rf2 {[%clk 0:00:08]}  Rd3 {[%clk 0:00:12]} 38. Bf3 {[%clk 0:00:06]}  Qg5+ {[%clk 0:00:12]} 39. Bg4 {[%clk 0:00:07]}  Qe3 {[%clk 0:00:11]} 40. Re2 {[%clk 0:00:02]}  Qg3+ {[%clk 0:00:11]} 0-1


[Site "https://www.chess.com"]

[Event "Titled Tuesday Blitz March 15 Early 2022"]
[White "Ilyasli, Ughur"]
[Black "Jeet, Jain"]
[WhiteFideId "13416197"]
[BlackFideId "5073022"]
[WhiteElo "2045"]
[BlackElo "2085"]
[Result "1-0"]
[Round "05"]
[TimeControl "180+1"]
[Date "2022.03.15"]
[WhiteClock "0:01:00"]
[BlackClock "0:00:51"]

1. d4 {[%clk 0:03:00]}  Nf6 {[%clk 0:02:56]} 2. c4 {[%clk 0:03:00]}  c5 {[%clk 0:02:56]} 3. d5 {[%clk 0:03:00]}  b5 {[%clk 0:02:56]} 4. cxb5 {[%clk 0:03:00]}  a6 {[%clk 0:02:56]} 5. f3 {[%clk 0:03:00]}  axb5 {[%clk 0:02:55]} 6. e4 {[%clk 0:03:00]}  Qb6 {[%clk 0:02:46]} 7. e5 {[%clk 0:02:59]}  Ng8 {[%clk 0:02:44]} 8. f4 {[%clk 0:02:51]}  d6 {[%clk 0:02:44]} 9. Nf3 {[%clk 0:02:46]}  g6 {[%clk 0:02:37]} 10. Nc3 {[%clk 0:02:34]}  b4 {[%clk 0:02:36]} 11. Ne4 {[%clk 0:02:33]}  Bf5 {[%clk 0:02:32]} 12. Ng3 {[%clk 0:02:26]}  Nh6 {[%clk 0:02:29]} 13. Bc4 {[%clk 0:02:20]}  dxe5 {[%clk 0:02:15]} 14. fxe5 {[%clk 0:02:14]}  Bg7 {[%clk 0:02:13]} 15. Bxh6 {[%clk 0:02:08]}  Bxh6 {[%clk 0:02:13]} 16. Nxf5 {[%clk 0:02:08]}  gxf5 {[%clk 0:02:14]} 17. e6 {[%clk 0:01:58]}  fxe6 {[%clk 0:01:51]} 18. dxe6 {[%clk 0:01:59]}  Qd6 {[%clk 0:01:51]} 19. Qe2 {[%clk 0:01:43]}  Nc6 {[%clk 0:01:46]} 20. Rd1 {[%clk 0:01:42]}  Nd4 {[%clk 0:01:46]} 21. Nxd4 {[%clk 0:01:40]}  cxd4 {[%clk 0:01:47]} 22. Qh5+ {[%clk 0:01:36]}  Kd8 {[%clk 0:01:43]} 23. Qxh6 {[%clk 0:01:36]}  Qe5+ {[%clk 0:01:43]} 24. Kf2 {[%clk 0:01:33]}  Qc5 {[%clk 0:01:37]} 25. Qf4 {[%clk 0:01:18]}  d3+ {[%clk 0:01:14]} 26. Kf3 {[%clk 0:01:16]}  Qc6+ {[%clk 0:01:11]} 27. Ke3 {[%clk 0:01:16]}  Qc5+ {[%clk 0:01:08]} 28. Qd4+ {[%clk 0:01:14]}  Qxd4+ {[%clk 0:01:08]} 29. Kxd4 {[%clk 0:01:15]}  Rg8 {[%clk 0:01:06]} 30. g3 {[%clk 0:01:12]}  Rg4+ {[%clk 0:01:03]} 31. Kxd3 {[%clk 0:01:12]}  Rc8 {[%clk 0:01:02]} 32. Bb5 {[%clk 0:01:03]}  Rc5 {[%clk 0:00:52]} 33. Ke3+ {[%clk 0:01:00]}  Kc7 {[%clk 0:00:52]} 34. Rc1 {[%clk 0:01:00]}  Kb6 {[%clk 0:00:50]} 35. Rxc5 {[%clk 0:00:59]}  Kxc5 {[%clk 0:00:51]} 36. Bd3 {[%clk 0:01:00]} 1-0


[Site "https://www.chess.com"]

[Event "Titled Tuesday Blitz March 15 Early 2022"]
[White "Kamsky, Gata"]
[Black "Golubev, Mikhail"]
[WhiteFideId "2000024"]
[BlackFideId "14100983"]
[WhiteElo "2645"]
[BlackElo "2374"]
[Result "1-0"]
[Round "05"]
[TimeControl "180+1"]
[Date "2022.03.15"]
[WhiteClock "0:00:37"]
[BlackClock "0:00:06"]

1. e4 {[%clk 0:02:55]}  c5 {[%clk 0:02:58]} 2. Nf3 {[%clk 0:02:51]}  d6 {[%clk 0:02:58]} 3. d4 {[%clk 0:02:46]}  Nf6 {[%clk 0:02:58]} 4. Bb5+ {[%clk 0:02:42]}  Nbd7 {[%clk 0:02:56]} 5. e5 {[%clk 0:02:34]}  Qa5+ {[%clk 0:02:47]} 6. Nc3 {[%clk 0:02:32]}  Ne4 {[%clk 0:02:31]} 7. O-O {[%clk 0:01:29]}  Nxc3 {[%clk 0:02:30]} 8. Bxd7+ {[%clk 0:01:28]}  Bxd7 {[%clk 0:02:30]} 9. bxc3 {[%clk 0:01:29]}  Qxc3 {[%clk 0:01:52]} 10. Bd2 {[%clk 0:01:20]}  Qc4 {[%clk 0:01:48]} 11. exd6 {[%clk 0:01:17]}  exd6 {[%clk 0:01:42]} 12. Re1+ {[%clk 0:01:16]}  Be6 {[%clk 0:01:32]} 13. Bg5 {[%clk 0:01:11]}  h6 {[%clk 0:01:07]} 14. Bh4 {[%clk 0:01:09]}  g5 {[%clk 0:01:03]} 15. d5 {[%clk 0:01:02]}  gxh4 {[%clk 0:00:56]} 16. dxe6 {[%clk 0:01:03]}  fxe6 {[%clk 0:00:54]} 17. Nd2 {[%clk 0:00:53]}  Qd5 {[%clk 0:00:32]} 18. c4 {[%clk 0:00:52]}  Qf5 {[%clk 0:00:30]} 19. Qa4+ {[%clk 0:00:51]}  Kf7 {[%clk 0:00:19]} 20. Qd7+ {[%clk 0:00:47]}  Be7 {[%clk 0:00:15]} 21. Ne4 {[%clk 0:00:48]}  Qe5 {[%clk 0:00:10]} 22. Nxc5 {[%clk 0:00:40]}  Qxc5 {[%clk 0:00:08]} 23. Qxe6+ {[%clk 0:00:40]}  Kg7 {[%clk 0:00:06]} 24. Qxe7+ {[%clk 0:00:40]}  Kg8 {[%clk 0:00:07]} 25. Qe6+ {[%clk 0:00:38]}  Kg7 {[%clk 0:00:07]} 26. Qd7+ {[%clk 0:00:38]}  Kg8 {[%clk 0:00:06]} 27. Re7 {[%clk 0:00:37]} 1-0


[Site "https://www.chess.com"]

[Event "Titled Tuesday Blitz March 15 Early 2022"]
[White "Koellner, Ruben Gideon"]
[Black "Maltsevskaya, Aleksandra"]
[WhiteFideId "12993093"]
[BlackFideId "24174041"]
[WhiteElo "2437"]
[BlackElo "2241"]
[Result "1-0"]
[Round "05"]
[TimeControl "180+1"]
[Date "2022.03.15"]
[WhiteClock "0:00:06"]
[BlackClock "0:00:10"]

1. d4 {[%clk 0:03:00]}  Nf6 {[%clk 0:02:57]} 2. Bg5 {[%clk 0:02:59]}  Ne4 {[%clk 0:02:57]} 3. Bf4 {[%clk 0:02:58]}  c5 {[%clk 0:02:57]} 4. f3 {[%clk 0:02:56]}  Qa5+ {[%clk 0:02:58]} 5. c3 {[%clk 0:02:56]}  Nf6 {[%clk 0:02:58]} 6. d5 {[%clk 0:02:57]}  e6 {[%clk 0:02:58]} 7. e4 {[%clk 0:02:57]}  exd5 {[%clk 0:02:58]} 8. exd5 {[%clk 0:02:58]}  d6 {[%clk 0:02:59]} 9. Na3 {[%clk 0:02:50]}  Be7 {[%clk 0:02:59]} 10. Nc4 {[%clk 0:02:49]}  Qd8 {[%clk 0:02:59]} 11. Ne3 {[%clk 0:02:48]}  O-O {[%clk 0:03:00]} 12. Bd3 {[%clk 0:02:48]}  Re8 {[%clk 0:03:00]} 13. Ne2 {[%clk 0:02:47]}  Bf8 {[%clk 0:03:00]} 14. g4 {[%clk 0:02:43]}  Nbd7 {[%clk 0:02:54]} 15. Kf2 {[%clk 0:02:29]}  Ne5 {[%clk 0:02:53]} 16. c4 {[%clk 0:02:22]}  a6 {[%clk 0:02:46]} 17. a4 {[%clk 0:02:18]}  Rb8 {[%clk 0:02:45]} 18. Nc3 {[%clk 0:02:11]}  b5 {[%clk 0:02:18]} 19. axb5 {[%clk 0:01:59]}  axb5 {[%clk 0:02:19]} 20. Nxb5 {[%clk 0:01:59]}  Nxd3+ {[%clk 0:02:12]} 21. Qxd3 {[%clk 0:01:58]}  Bd7 {[%clk 0:02:13]} 22. Nxd6 {[%clk 0:01:37]}  Rxb2+ {[%clk 0:02:10]} 23. Kg3 {[%clk 0:01:36]}  Nh5+ {[%clk 0:01:30]} 24. gxh5 {[%clk 0:01:29]}  Bxd6 {[%clk 0:01:30]} 25. Bxd6 {[%clk 0:01:23]}  Qg5+ {[%clk 0:01:26]} 26. Ng4 {[%clk 0:01:21]}  Bxg4 {[%clk 0:01:26]} 27. Bf4 {[%clk 0:01:04]}  Qf5 {[%clk 0:00:03]} 28. Qxf5 {[%clk 0:00:15]}  Bxf5 {[%clk 0:00:04]} 29. Rhe1 {[%clk 0:00:14]}  Rc8 {[%clk 0:00:04]} 30. Rac1 {[%clk 0:00:10]}  h6 {[%clk 0:00:04]} 31. Re7 {[%clk 0:00:09]}  Ra2 {[%clk 0:00:02]} 32. Rc7 {[%clk 0:00:08]}  Re8 {[%clk 0:00:03]} 33. d6 {[%clk 0:00:07]}  Ree2 {[%clk 0:00:03]} 34. d7 {[%clk 0:00:01]}  Rg2+ {[%clk 0:00:03]} 35. Kh4 {[%clk 0:00:02]}  g5+ {[%clk 0:00:03]} 36. hxg6 {[%clk 0:00:02]}  Kg7 {[%clk 0:00:03]} 37. d8=Q {[%clk 0:00:02]}  Rxg6 {[%clk 0:00:02]} 38. Qd6 {[%clk 0:00:01]}  Rxh2+ {[%clk 0:00:03]} 39. Bxh2 {[%clk 0:00:01]}  Rg4+ {[%clk 0:00:04]} 40. fxg4 {[%clk 0:00:01]}  Bg6 {[%clk 0:00:05]} 41. Qe5+ {[%clk 0:00:01]}  Kh7 {[%clk 0:00:05]} 42. Qf4 {[%clk 0:00:02]}  h5 {[%clk 0:00:06]} 43. Qe5 {[%clk 0:00:02]}  hxg4 {[%clk 0:00:07]} 44. Qf6 {[%clk 0:00:03]}  Kg8 {[%clk 0:00:08]} 45. Kxg4 {[%clk 0:00:04]}  Kh7 {[%clk 0:00:09]} 46. Kg5 {[%clk 0:00:05]}  Bf5 {[%clk 0:00:09]} 47. Rc8 {[%clk 0:00:05]}  Be6 {[%clk 0:00:10]} 48. Rh8# {[%clk 0:00:06]} 1-0


[Site "https://www.chess.com"]

[Event "Titled Tuesday Blitz March 15 Early 2022"]
[White "Maghsoodloo, Parham"]
[Black "Kowalczyk, Pawel"]
[WhiteFideId "12539929"]
[BlackFideId "1130641"]
[WhiteElo "2630"]
[BlackElo "2344"]
[Result "0-1"]
[Round "05"]
[TimeControl "180+1"]
[Date "2022.03.15"]
[WhiteClock "0:01:38"]
[BlackClock "0:01:39"]

1. e4 {[%clk 0:02:59]}  c5 {[%clk 0:02:56]} 2. Nf3 {[%clk 0:02:59]}  e6 {[%clk 0:02:56]} 3. d4 {[%clk 0:02:59]}  cxd4 {[%clk 0:02:57]} 4. Nxd4 {[%clk 0:03:00]}  Qb6 {[%clk 0:02:57]} 5. Nc3 {[%clk 0:03:00]}  Bc5 {[%clk 0:02:57]} 6. Be3 {[%clk 0:02:44]}  Nc6 {[%clk 0:02:49]} 7. Na4 {[%clk 0:02:28]}  Qa5+ {[%clk 0:02:49]} 8. c3 {[%clk 0:02:29]}  Bxd4 {[%clk 0:02:49]} 9. Bxd4 {[%clk 0:02:29]}  Nxd4 {[%clk 0:02:50]} 10. Qxd4 {[%clk 0:02:23]}  e5 {[%clk 0:02:50]} 11. Qb4 {[%clk 0:02:21]}  Qxb4 {[%clk 0:02:51]} 12. cxb4 {[%clk 0:02:22]}  Nf6 {[%clk 0:02:51]} 13. Nc3 {[%clk 0:02:21]}  d6 {[%clk 0:02:51]} 14. O-O-O {[%clk 0:02:21]}  Ke7 {[%clk 0:02:50]} 15. f3 {[%clk 0:02:19]}  Be6 {[%clk 0:02:50]} 16. g4 {[%clk 0:02:19]}  h6 {[%clk 0:02:49]} 17. h4 {[%clk 0:02:19]}  Rac8 {[%clk 0:02:49]} 18. Kb1 {[%clk 0:02:19]}  Rhd8 {[%clk 0:02:34]} 19. g5 {[%clk 0:02:19]}  Nh5 {[%clk 0:02:35]} 20. Bh3 {[%clk 0:02:19]}  Nf4 {[%clk 0:02:29]} 21. Bxe6 {[%clk 0:02:19]}  fxe6 {[%clk 0:02:27]} 22. gxh6 {[%clk 0:02:17]}  gxh6 {[%clk 0:02:28]} 23. Rhg1 {[%clk 0:02:18]}  Rg8 {[%clk 0:02:24]} 24. Rxg8 {[%clk 0:02:18]}  Rxg8 {[%clk 0:02:24]} 25. Nb5 {[%clk 0:02:19]}  d5 {[%clk 0:02:24]} 26. Nxa7 {[%clk 0:02:18]}  d4 {[%clk 0:02:19]} 27. a4 {[%clk 0:02:18]}  Ra8 {[%clk 0:02:13]} 28. Nb5 {[%clk 0:02:11]}  Rxa4 {[%clk 0:02:13]} 29. Rc1 {[%clk 0:02:11]}  Rxb4 {[%clk 0:02:09]} 30. Rc7+ {[%clk 0:02:11]}  Kf6 {[%clk 0:02:00]} 31. Rxb7 {[%clk 0:02:04]}  d3 {[%clk 0:01:57]} 32. Kc1 {[%clk 0:01:48]}  d2+ {[%clk 0:01:55]} 33. Kxd2 {[%clk 0:01:42]}  Rxb2+ {[%clk 0:01:55]} 34. Kc3 {[%clk 0:01:40]}  Rf2 {[%clk 0:01:44]} 35. Nd6 {[%clk 0:01:40]}  Rxf3+ {[%clk 0:01:44]} 36. Kd2 {[%clk 0:01:38]}  Rd3+ {[%clk 0:01:44]} 37. Kc2 {[%clk 0:01:38]}  Rxd6 {[%clk 0:01:39]} 0-1


[Site "https://www.chess.com"]

[Event "Titled Tuesday Blitz March 15 Early 2022"]
[White "Marson, Juan Miguel"]
[Black "Samadov, Read"]
[WhiteFideId "106585"]
[BlackFideId "13417444"]
[WhiteElo "2053"]
[BlackElo "2084"]
[Result "1/2-1/2"]
[Round "05"]
[TimeControl "180+1"]
[Date "2022.03.15"]
[WhiteClock "0:00:16"]
[BlackClock "0:00:13"]

1. e4 {[%clk 0:02:47]}  c5 {[%clk 0:02:59]} 2. c3 {[%clk 0:02:46]}  d5 {[%clk 0:02:59]} 3. exd5 {[%clk 0:02:45]}  Qxd5 {[%clk 0:03:00]} 4. d4 {[%clk 0:02:43]}  Nc6 {[%clk 0:03:00]} 5. Nf3 {[%clk 0:02:41]}  Bf5 {[%clk 0:03:01]} 6. Be3 {[%clk 0:02:13]}  Nf6 {[%clk 0:03:00]} 7. Na3 {[%clk 0:02:12]}  cxd4 {[%clk 0:02:57]} 8. Bc4 {[%clk 0:02:07]}  Qa5 {[%clk 0:02:57]} 9. Nxd4 {[%clk 0:02:07]}  Nxd4 {[%clk 0:02:57]} 10. Bxd4 {[%clk 0:01:57]}  e5 {[%clk 0:02:57]} 11. Bb5+ {[%clk 0:01:58]}  Bd7 {[%clk 0:02:57]} 12. Bxd7+ {[%clk 0:01:57]}  Nxd7 {[%clk 0:02:58]} 13. Nc4 {[%clk 0:01:57]}  Qd5 {[%clk 0:02:57]} 14. Qe2 {[%clk 0:01:57]}  f6 {[%clk 0:02:56]} 15. Ne3 {[%clk 0:01:56]}  Qe6 {[%clk 0:02:51]} 16. Nc2 {[%clk 0:01:50]}  Be7 {[%clk 0:02:47]} 17. O-O {[%clk 0:01:46]}  O-O {[%clk 0:02:47]} 18. f4 {[%clk 0:01:44]}  Bc5 {[%clk 0:01:56]} 19. Bxc5 {[%clk 0:01:40]}  Nxc5 {[%clk 0:01:57]} 20. fxe5 {[%clk 0:01:33]}  fxe5 {[%clk 0:01:57]} 21. Rxf8+ {[%clk 0:01:31]}  Rxf8 {[%clk 0:01:56]} 22. Re1 {[%clk 0:01:29]}  e4 {[%clk 0:01:52]} 23. Nb4 {[%clk 0:01:19]}  a5 {[%clk 0:01:44]} 24. Qe3 {[%clk 0:01:18]}  b6 {[%clk 0:01:38]} 25. Nd3 {[%clk 0:00:44]}  Nxd3 {[%clk 0:00:54]} 26. Qxd3 {[%clk 0:00:44]}  Qxa2 {[%clk 0:00:54]} 27. Qxe4 {[%clk 0:00:27]}  Qxb2 {[%clk 0:00:53]} 28. Qe6+ {[%clk 0:00:26]}  Kh8 {[%clk 0:00:53]} 29. Qf7 {[%clk 0:00:19]}  Rg8 {[%clk 0:00:17]} 30. Re8 {[%clk 0:00:19]}  Qc1+ {[%clk 0:00:17]} 31. Kf2 {[%clk 0:00:18]}  Qd2+ {[%clk 0:00:17]} 32. Kf1 {[%clk 0:00:17]}  Qd3+ {[%clk 0:00:15]} 33. Kf2 {[%clk 0:00:16]}  Qd2+ {[%clk 0:00:15]} 34. Kf1 {[%clk 0:00:17]}  Qd1+ {[%clk 0:00:15]} 35. Kf2 {[%clk 0:00:17]}  Qc2+ {[%clk 0:00:16]} 36. Kf1 {[%clk 0:00:17]}  Qb1+ {[%clk 0:00:14]} 37. Kf2 {[%clk 0:00:17]}  Qb2+ {[%clk 0:00:13]} 38. Kf1 {[%clk 0:00:17]}  Qc1+ {[%clk 0:00:13]} 39. Kf2 {[%clk 0:00:16]}  Qd2+ {[%clk 0:00:13]} 1/2-1/2


[Site "https://www.chess.com"]